bitfinex/quotes_BTCUSD_20251226
["timestamp","ask_amount","ask_price","bid_price","bid_amount"]
[1766764769724,0.01146973,87186.0,87168.0,0.00010748]
[1766764769905,0.03834518,87186.0,87169.0,1.37933]
[1766764770127,1.38541,87187.0,87169.0,1.37933]
[1766764770268,1.39697,87187.0,87168.0,0.00010748]
[1766764770673,1.38541,87185.0,87168.0,0.00010748]
[1766764771392,1.39687986,87185.0,87168.0,0.00010748]
[1766764771927,1.38541,87185.0,87168.0,0.00010748]
[1766764772152,1.38541,87185.0,87168.0,1.37943748]
[1766764772353,0.01146973,87186.0,87168.0,1.37943748]
[1766764772585,0.02302959,87187.0,87168.0,1.37943748]
[1766764772802,0.0518901,87186.0,87168.0,1.37943748]
[1766764773003,0.06335983,87186.0,87168.0,1.37943748]
[1766764773166,1.38541,87185.0,87168.0,0.00010748]
[1766764773905,0.38541,87183.0,87168.0,0.00010748]
[1766764777608,0.01156,87187.0,87168.0,1.37943748]
[1766764779014,0.11424524,87186.0,87168.0,1.36810738]
[1766764779237,1.17998,87186.0,87168.0,1.36810738]
[1766764779562,1.17998,87186.0,87152.0,0.05737096]
[1766764779563,1.17998,87168.0,87145.0,1.37933]
[1766764779746,1.17998,87168.0,87136.0,1.37933]
[1766764779747,1.17998,87159.0,87136.0,1.37933]
[1766764780216,1.17998,87158.0,87136.0,1.37933]
[1766764780417,0.01152,87160.0,87137.0,1.39085]
[1766764780573,0.01152,87160.0,87138.0,1.37933]
[1766764780955,0.01156,87161.0,87160.0,0.000549]
[1766764781124,0.01156,87161.0,87149.0,1.37933]
[1766764782169,0.01072352,87160.0,87149.0,1.37933]
[1766764782396,0.01072352,87159.0,87149.0,1.37933]
[1766764782646,0.01156,87161.0,87149.0,1.37933]
[1766764782842,0.01072333,87160.0,87149.0,1.37933]
[1766764783134,0.01072333,87159.0,87149.0,1.37933]
[1766764783286,0.01072333,87158.0,87145.0,0.01156]
[1766764783492,0.02303302,87161.0,87145.0,0.01156]
[1766764783493,0.01072333,87157.0,87145.0,0.01156]
[1766764783844,0.01072333,87156.0,87145.0,0.01156]
[1766764784069,0.000549,87145.0,87139.0,1.37933]
[1766764784234,0.01147328,87159.0,87142.0,0.01156]
[1766764784235,0.01147354,87157.0,87142.0,0.01156]
[1766764784411,0.07108564,87198.0,87142.0,0.01156]
[1766764784412,0.2293707,87196.0,87154.0,0.12852659]
[1766764784614,1.28165,87188.0,87160.0,1.44783]
[1766764784812,1.29321,87187.0,87158.0,1.44783]
[1766764785039,1.29321,87187.0,87158.0,1.44793742]
[1766764785416,1.28165,87186.0,87158.0,1.44793742]
[1766764785614,0.01146986,87185.0,87158.0,1.44793742]
[1766764785947,1.28165,87186.0,87158.0,1.44793742]
[1766764786161,1.29311973,87186.0,87159.0,1.44783]
[1766764786609,1.28165,87186.0,87159.0,1.44783]
[1766764786950,1.29311986,87185.0,87159.0,1.44783]
[1766764787146,1.29311999,87184.0,87159.0,1.44783]
[1766764787352,1.28165,87184.0,87159.0,1.44783]
[1766764787670,1.29311999,87184.0,87159.0,1.44783]
[1766764787841,1.28165,87184.0,87159.0,1.44783]
[1766764788392,1.27024274,87184.0,87159.0,1.44783]
[1766764788584,1.27024274,87184.0,87158.0,0.00010742]
[1766764788585,1.24605,87199.0,87184.0,0.00055]
[1766764788810,0.01156,87198.0,87184.0,0.00055]
[1766764789042,1.24605,87199.0,87180.0,0.66380082]
[1766764789270,0.01156,87201.0,87184.0,1.44783]
[1766764789822,0.01156,87201.0,87184.0,1.45939]
[1766764790349,1.25761,87201.0,87184.0,0.01156]
[1766764792957,1.26907775,87201.0,87184.0,0.01156]
[1766764793161,0.93117,87199.0,87184.0,0.01156]
[1766764793523,0.93117,87199.0,87176.0,1.44783]
[1766764793731,0.93117,87195.0,87163.0,1.41774]
[1766764793934,0.93117,87195.0,87165.0,1.41774]
[1766764794686,0.93117,87195.0,87171.0,1.41774]
[1766764794888,0.93117,87195.0,87174.0,1.41774]
[1766764795021,0.01156,87200.0,87174.0,1.41774]
[1766764795255,0.01156,87200.0,87175.0,1.41774]
[1766764795455,0.01156,87200.0,87165.0,0.01147249]
[1766764795456,0.93117,87199.0,87165.0,0.01147249]
[1766764795663,0.93117,87199.0,87168.0,0.01147209]
[1766764795869,0.93117,87199.0,87169.0,1.41774]
[1766764796118,0.93117,87199.0,87170.0,0.66380082]
[1766764796538,0.93117,87199.0,87165.0,0.05736187]
[1766764796539,0.000549,87170.0,87158.0,0.00010742]
[1766764797079,0.92186,87176.0,87158.0,0.00010742]
[1766764797505,0.95014353,87176.0,87158.0,0.00010742]
[1766764797749,0.92186,87176.0,87158.0,0.00010742]
[1766764797929,0.93342,87187.0,87176.0,0.00055]
[1766764798130,0.93342,87187.0,87161.0,1.41774]
[1766764798131,0.92186,87186.0,87167.0,0.01156]
[1766764798910,0.92186,87186.0,87168.0,0.01156]
[1766764799376,0.92186,87197.0,87186.0,0.00055]
[1766764799702,0.93203102,87196.0,87179.0,0.01156]
[1766764799895,0.00028363,87187.0,87179.0,0.01156]
[1766764800830,0.01146775,87201.0,87179.0,0.01156]
[1766764800831,0.2489,87226.0,87179.0,0.01156]
[1766764801002,0.66380082,87210.0,87179.0,0.01156]
[1766764801215,0.01071864,87209.0,87179.0,0.01156]
[1766764801402,0.93230726,87208.0,87180.0,1.41774]
[1766764802260,0.92159,87208.0,87180.0,1.41774]
[1766764802405,0.92159,87206.0,87180.0,1.41774]
[1766764803067,0.93315,87205.0,87181.0,0.01156]
[1766764803273,0.96011065,87205.0,87182.0,0.01156]
[1766764803628,0.66380082,87200.0,87181.0,0.01156]
[1766764803835,0.01156,87204.0,87181.0,1.4293]
[1766764804006,0.01156,87204.0,87182.0,0.01147025]
[1766764804300,0.01156,87204.0,87187.0,0.01146959]
[1766764804502,0.12852659,87211.0,87188.0,1.42807182]
[1766764804666,0.00599013,87209.0,87188.0,1.42807182]
[1766764805044,0.00496631,87193.0,87178.0,0.01147078]
[1766764805252,0.00496631,87193.0,87175.0,0.06882697]
[1766764805253,0.15362998,87193.0,87184.0,0.01146999]
[1766764805493,0.15362998,87193.0,87179.0,1.4293]
[1766764805494,0.01156,87210.0,87191.0,0.01146907]
[1766764805708,0.01156,87210.0,87192.0,1.41774]
[1766764805884,0.01156,87210.0,87194.0,1.41774]
[1766764806088,0.01156,87217.0,87201.0,0.01146775]
[1766764806286,0.01156,87217.0,87201.0,1.44076775]
[1766764806471,1.14948,87224.0,87203.0,1.41774]
[1766764806667,0.01156,87226.0,87203.0,1.42920749]
[1766764806958,0.01156,87226.0,87203.0,1.41774]
[1766764807794,0.001099,87203.0,87201.0,0.01156]
[1766764808405,1.14948,87222.0,87201.0,0.01156]
[1766764808932,0.66380082,87220.0,87201.0,0.01156]
[1766764809266,0.66380082,87220.0,87193.0,1.41774]
[1766764809267,0.000549,87201.0,87193.0,1.41774]
[1766764809443,0.66380082,87220.0,87194.0,0.01156]
[1766764809985,0.00025168,87195.0,87194.0,0.01156]
[1766764810959,0.00010748,87214.0,87195.0,1.41774]
[1766764811170,0.00010748,87214.0,87194.0,0.01156]
[1766764811171,1.14958,87228.0,87201.0,1.41774]
[1766764811382,0.01321874,87223.0,87201.0,1.41774]
[1766764811587,0.01156,87239.0,87211.0,1.41774]
[1766764811823,0.01156,87239.0,87215.0,1.41774]
[1766764812019,0.46340826,87250.0,87222.0,1.41774]
[1766764812020,0.45194695,87250.0,87222.0,1.41774]
[1766764812147,0.45194695,87250.0,87219.0,0.01146539]
[1766764812148,0.01156,87251.0,87224.0,1.41774]
[1766764812355,0.01668026,87250.0,87224.0,1.41774]
[1766764812686,0.00598742,87250.0,87226.0,1.41774]
[1766764812904,0.45793437,87250.0,87227.0,0.01156]
[1766764813107,0.01146144,87249.0,87227.0,0.01101]
[1766764813308,0.45793437,87250.0,87227.0,0.01101]
[1766764813518,0.00103794,87228.0,87227.0,0.01101]
[1766764813880,0.00048894,87228.0,87227.0,0.01101]
[1766764816038,1.23719164,87247.0,87227.0,0.01101]
[1766764816299,1.22572993,87247.0,87227.0,0.01101]
[1766764817097,0.00598742,87250.0,87230.0,0.01146394]
[1766764817312,0.00598742,87250.0,87236.0,1.47706]
[1766764817530,0.01356,87263.0,87250.0,0.00055]
[1766764818018,0.002,87263.0,87245.0,0.02302197]
[1766764818220,0.002,87263.0,87235.0,1.47706]
[1766764818221,0.45194695,87260.0,87235.0,1.47706]
[1766764818423,0.45194695,87250.0,87236.0,0.01156]
[1766764818601,0.0453947,87259.0,87236.0,0.01156]
[1766764818813,0.00010742,87250.0,87237.0,1.47706]
[1766764819565,0.00010742,87250.0,87238.0,0.01156]
[1766764819566,0.12852659,87239.0,87238.0,0.01156]
[1766764819683,0.12852659,87239.0,87231.0,0.00918551]
[1766764819901,0.12797659,87239.0,87223.0,1.47706]
[1766764820311,0.12797659,87239.0,87224.0,0.01156]
[1766764820716,0.12797659,87239.0,87223.0,1.48852486]
[1766764820921,0.45205437,87250.0,87226.0,1.48852447]
[1766764821121,0.45205437,87250.0,87236.0,1.47706]
[1766764821122,0.00010742,87250.0,87236.0,1.47706]
[1766764821369,0.00010742,87250.0,87238.0,1.47706]
[1766764822810,0.45205437,87250.0,87229.0,1.47706]
[1766764823048,0.45205437,87250.0,87233.0,1.48862]
[1766764823049,0.00010742,87250.0,87233.0,1.48862]
[1766764823461,0.01156,87255.0,87233.0,1.48862]
[1766764823670,0.01156,87255.0,87234.0,1.47706]
[1766764824335,0.45194695,87260.0,87234.0,1.47706]
[1766764824538,0.45194695,87260.0,87236.0,1.47706]
[1766764824751,0.0002828,87237.0,87236.0,1.47706]
[1766764824963,8e-07,87237.0,87234.0,1.48852342]
[1766764825177,0.45194695,87260.0,87234.0,1.48852342]
[1766764825405,0.45194695,87260.0,87234.0,1.47706]
[1766764825649,0.002,87263.0,87260.0,0.00021104]
[1766764825878,0.002,87263.0,87250.0,0.01156]
[1766764826077,1.16115,87262.0,87247.0,0.01156]
[1766764826345,1.16115,87262.0,87232.0,1.47706]
[1766764826346,0.45194695,87260.0,87232.0,1.47706]
[1766764826563,0.45194695,87260.0,87234.0,1.47706]
[1766764826788,0.45194695,87260.0,87235.0,1.48862]
[1766764826993,1.16115,87262.0,87235.0,1.50008328]
[1766764827376,0.002,87263.0,87238.0,0.05731447]
[1766764827559,0.45194695,87260.0,87239.0,1.47706]
[1766764828212,0.002,87263.0,87239.0,1.47706]
[1766764828419,0.45194695,87260.0,87239.0,1.47706]
[1766764829586,0.01146026,87258.0,87240.0,0.01156]
[1766764829788,0.00055,87240.0,87234.0,0.00010742]
[1766764829990,0.00055,87240.0,87225.0,1.47706]
[1766764829991,0.00055,87240.0,87226.0,0.01156]
[1766764830167,0.45194695,87244.0,87215.0,0.05732951]
[1766764830168,0.45194695,87244.0,87215.0,1.47706]
[1766764830355,0.45194695,87244.0,87217.0,0.01146565]
[1766764830356,0.45205427,87244.0,87217.0,0.01146565]
[1766764830570,0.45205427,87244.0,87219.0,0.01146539]
[1766764830776,0.45205427,87244.0,87219.0,1.47706]
[1766764830972,0.00010732,87244.0,87222.0,0.01146499]
[1766764831210,0.00010732,87244.0,87221.0,1.48852512]
[1766764831433,0.00010732,87244.0,87222.0,0.01146499]
[1766764831812,0.00010732,87244.0,87228.0,1.47706]
[1766764832006,0.00010732,87244.0,87233.0,0.01146355]
[1766764832204,0.01156,87259.0,87244.0,0.000107]
[1766764832406,0.01156,87259.0,87240.0,1.48862]
[1766764832619,0.002,87263.0,87242.0,0.01146236]
[1766764832822,0.01356,87263.0,87242.0,0.01146236]
[1766764833022,1.49937804,87272.0,87246.0,1.47706]
[1766764833023,0.01272804,87272.0,87246.0,1.47706]
[1766764833276,0.45194695,87270.0,87246.0,1.47706]
[1766764833428,0.01283542,87272.0,87250.0,1.47706]
[1766764833639,0.01283542,87272.0,87253.0,1.47706]
[1766764833873,0.01283542,87272.0,87255.0,1.47706]
[1766764834243,0.01283542,87272.0,87245.0,0.06877165]
[1766764834244,0.0001,87286.0,87260.0,0.45194695]
[1766764834451,0.01068978,87285.0,87261.0,1.47706]
[1766764834655,0.45194695,87280.0,87261.0,1.47706]
[1766764834851,0.45194695,87280.0,87262.0,0.01156]
[1766764834852,0.46340432,87280.0,87262.0,0.01156]
[1766764835105,0.0114575,87279.0,87262.0,0.01156]
[1766764835304,0.46340432,87280.0,87261.0,1.47706]
[1766764835452,0.00055,87262.0,87243.0,0.04588]
[1766764835631,0.45194695,87260.0,87244.0,0.01156]
[1766764835833,0.00010732,87260.0,87244.0,0.01156]
[1766764836061,0.00010732,87260.0,87245.0,0.01156]
[1766764836220,0.00010732,87260.0,87240.0,1.47706]
[1766764836420,0.12852659,87241.0,87230.0,1.47706]
[1766764836619,0.12852659,87238.0,87231.0,0.01156]
[1766764836944,0.45194695,87250.0,87231.0,1.48862]
[1766764837114,0.45194695,87250.0,87231.0,0.01156]
[1766764838308,0.01156,87253.0,87231.0,0.01156]
[1766764838507,0.45194695,87250.0,87231.0,0.01156]
[1766764838873,0.01181144,87253.0,87231.0,1.48862]
[1766764839071,0.01181144,87253.0,87232.0,0.01146368]
[1766764839294,0.01181144,87253.0,87233.0,1.47706]
[1766764839504,0.00025144,87253.0,87236.0,1.47706]
[1766764839726,0.00010732,87260.0,87253.0,0.00024956]
[1766764839921,0.01003943,87268.0,87247.0,1.48862]
[1766764840129,0.0107105,87267.0,87247.0,1.48872732]
[1766764840321,0.0107105,87266.0,87248.0,1.47706]
[1766764840465,0.01156,87275.0,87248.0,1.47706]
[1766764840684,0.01071728,87274.0,87248.0,1.47706]
[1766764841031,0.01071728,87273.0,87250.0,1.47706]
[1766764841236,0.01071728,87272.0,87250.0,1.47646207]
[1766764841467,1.48665,87276.0,87251.0,0.01146118]
[1766764841468,0.01071728,87271.0,87251.0,0.01146118]
[1766764841598,0.01071728,87271.0,87250.0,1.53376842]
[1766764841599,0.01072155,87270.0,87252.0,0.01156]
[1766764841800,1.48665,87276.0,87252.0,0.01156]
[1766764842005,0.01072135,87275.0,87252.0,0.01156]
[1766764842208,0.12852659,87264.0,87252.0,0.02302105]
[1766764842412,0.01285266,87263.0,87250.0,0.01146131]
[1766764842612,0.01285266,87263.0,87248.0,0.05730735]
[1766764842613,0.12852659,87264.0,87244.0,0.0114621]
[1766764842810,0.12852659,87264.0,87250.0,0.01156]
[1766764843012,0.45194695,87270.0,87250.0,0.01156]
[1766764843225,0.01072215,87269.0,87250.0,0.01156]
[1766764843430,0.45194695,87270.0,87250.0,0.01156]
[1766764843640,0.0107228,87269.0,87250.0,0.01156]
[1766764843839,1.48665,87269.0,87247.0,0.00010732]
[1766764844064,1.48665,87269.0,87249.0,0.01156]
[1766764844424,1.39032,87267.0,87249.0,0.01156]
[1766764844668,1.50456524,87267.0,87249.0,0.01156]
[1766764845258,0.00025141,87261.0,87249.0,0.01156]
[1766764846050,0.00025141,87261.0,87228.0,0.0114642]
[1766764846051,0.000551,87249.0,87228.0,0.0114642]
[1766764846307,0.000551,87249.0,87235.0,0.01156]
[1766764846510,0.45194695,87250.0,87235.0,0.01156]
[1766764846847,0.45194695,87250.0,87224.0,0.06878829]
[1766764846848,0.12852659,87236.0,87216.0,0.01146578]
[1766764847050,0.12852659,87236.0,87210.0,1.35162]
[1766764847051,0.12852659,87236.0,87223.0,0.01146486]
[1766764847421,0.12852659,87236.0,87217.0,0.01156]
[1766764847422,0.01156,87256.0,87236.0,1.352168]
[1766764847613,0.01073068,87255.0,87238.0,0.01146289]
[1766764847818,0.01166734,87256.0,87237.0,0.01156]
[1766764847819,0.00010734,87256.0,87237.0,0.01156]
[1766764848098,0.00010734,87256.0,87239.0,1.36308276]
[1766764848250,0.00010734,87256.0,87242.0,1.35162]
[1766764848455,0.01156,87266.0,87242.0,1.35162]
[1766764848655,0.01072954,87265.0,87242.0,1.35172734]
[1766764848868,0.01156,87266.0,87220.0,1.35162]
[1766764848869,1.39032,87255.0,87220.0,1.35162]
[1766764849063,0.000551,87242.0,87222.0,0.01146499]
[1766764849245,0.00010734,87255.0,87222.0,0.01146499]
[1766764849246,0.00010734,87255.0,87237.0,1.35162]
[1766764849520,0.00010734,87255.0,87238.0,0.01156]
[1766764850063,0.00010734,87255.0,87239.0,0.01146276]
[1766764850269,0.00010734,87255.0,87243.0,0.01146223]
[1766764850488,0.00010734,87255.0,87244.0,0.0114621]
[1766764850692,3.4e-07,87255.0,87245.0,0.0114721]
[1766764850894,3.4e-07,87255.0,87246.0,0.01156]
[1766764852311,3.4e-07,87255.0,87247.0,1.37028]
[1766764852687,3.4e-07,87255.0,87236.0,0.01146315]
[1766764852888,3.4e-07,87255.0,87237.0,0.01156]
[1766764853321,0.11424524,87254.0,87237.0,0.01156]
[1766764853520,0.01073274,87253.0,87237.0,0.01156]
[1766764853897,0.01073274,87253.0,87220.0,0.06879127]
[1766764854098,0.000108,87237.0,87224.0,1.38184]
[1766764854710,0.023021,87255.0,87224.0,1.39330473]
[1766764854711,1.46918,87254.0,87224.0,1.39330473]
[1766764854911,0.01073314,87253.0,87224.0,1.38184]
[1766764855111,0.01073314,87252.0,87224.0,1.38184]
[1766764855320,1.46918,87254.0,87224.0,1.39330473]
[1766764855637,0.010733,87253.0,87224.0,1.39330473]
[1766764855896,0.010733,87253.0,87224.0,1.38184]
[1766764855897,0.45194695,87250.0,87224.0,1.38184]
[1766764856057,0.010733,87249.0,87225.0,0.01156]
[1766764856266,0.45194695,87250.0,87225.0,0.01156]
[1766764856562,0.46340826,87250.0,87225.0,0.01156]
[1766764856743,0.45194695,87250.0,87225.0,0.01156]
[1766764856947,0.46340826,87250.0,87225.0,0.01156]
[1766764857264,0.45194695,87250.0,87225.0,0.01156]
[1766764857428,0.45194695,87250.0,87224.0,1.37028]
[1766764857429,0.01146171,87247.0,87224.0,1.37028]
[1766764857635,0.000108,87224.0,87216.0,0.04588]
[1766764857853,0.28304395,87240.0,87214.0,1.37028]
[1766764858061,1.75222395,87240.0,87215.0,0.01156]
[1766764858662,1.75222395,87240.0,87214.0,1.37028]
[1766764858663,0.45194695,87230.0,87216.0,0.01156]
[1766764858860,0.45194695,87230.0,87216.0,0.01101]
[1766764859093,0.45194695,87230.0,87210.0,0.01156]
[1766764859253,1.46918,87229.0,87210.0,0.01025424]
[1766764860269,0.01156,87234.0,87210.0,0.0003582]
[1766764860482,0.01156,87234.0,87211.0,0.02674191]
[1766764860677,0.01156,87234.0,87212.0,0.00059599]
[1766764860925,0.01156,87234.0,87212.0,1.37028]
[1766764861469,1.48074,87234.0,87211.0,0.01156]
[1766764861675,1.46918,87234.0,87211.0,0.01156]
[1766764862045,1.59498524,87234.0,87211.0,0.01156]
[1766764862841,1.59498524,87234.0,87210.0,0.45230515]
[1766764863043,1.59498524,87234.0,87211.0,0.01156]
[1766764863303,1.48074,87234.0,87211.0,0.01156]
[1766764863750,0.01156,87234.0,87212.0,1.37028]
[1766764864370,1.48074,87234.0,87212.0,1.37028]
[1766764864711,1.48074,87234.0,87213.0,0.01146618]
[1766764864862,1.48074,87234.0,87211.0,0.01156]
[1766764865203,1.48074,87234.0,87212.0,0.00692539]
[1766764865503,1.48074,87234.0,87212.0,0.0183917]
[1766764865862,1.48074,87234.0,87212.0,0.00692539]
[1766764866294,1.48074,87234.0,87211.0,0.01156]
[1766764866295,0.45194695,87240.0,87215.0,0.01146591]
[1766764866468,0.45194695,87240.0,87211.0,0.01156]
[1766764866469,0.01156,87246.0,87234.0,0.001099]
[1766764866667,1.48074,87246.0,87234.0,0.001099]
[1766764866868,0.11424524,87245.0,87226.0,0.01156]
[1766764867068,1.46918,87245.0,87226.0,0.01156]
[1766764867296,1.46918,87245.0,87225.0,0.01156]
[1766764867493,1.46918,87245.0,87229.0,0.01146407]
[1766764867670,1.46918,87259.0,87245.0,0.001099]
[1766764868113,1.46918,87259.0,87244.0,0.01156]
[1766764868889,1.46928734,87259.0,87244.0,0.01156]
[1766764869090,0.01156,87265.0,87259.0,0.00044166]
[1766764869324,1.46918,87269.0,87265.0,0.00055]
[1766764869770,1.46918,87269.0,87256.0,0.01146052]
[1766764869976,0.01156,87275.0,87264.0,0.01145947]
[1766764870117,0.00010738,87275.0,87263.0,0.01145961]
[1766764870580,0.00010738,87275.0,87264.0,0.01145947]
[1766764870581,3.8e-07,87275.0,87264.0,0.01145947]
[1766764871147,3.8e-07,87275.0,87261.0,0.08031867]
[1766764871148,3.8e-07,87275.0,87263.0,0.01145961]
[1766764871355,3.8e-07,87275.0,87264.0,0.01145947]
[1766764871555,3.8e-07,87275.0,87266.0,0.01145921]
[1766764871788,3.8e-07,87275.0,87267.0,0.01145908]
[1766764871969,3.8e-07,87275.0,87265.0,0.06875547]
[1766764871970,3.8e-07,87275.0,87265.0,0.01145934]
[1766764872169,3.8e-07,87275.0,87264.0,1.37028]
[1766764872364,3.8e-07,87275.0,87265.0,0.03897553]
[1766764872788,3.8e-07,87275.0,87265.0,0.01145934]
[1766764872963,3.8e-07,87275.0,87267.0,0.01145908]
[1766764873366,3.8e-07,87275.0,87272.0,0.01145842]
[1766764873607,3.8e-07,87275.0,87273.0,0.01156]
[1766764874751,3.8e-07,87275.0,87274.0,0.05729083]
[1766764874957,3.8e-07,87275.0,87273.0,0.01156]
[1766764875164,3.8e-07,87275.0,87273.0,0.06885146]
[1766764875511,3.8e-07,87275.0,87273.0,0.01156]
[1766764876749,3.8e-07,87275.0,87274.0,0.05729083]
[1766764877373,3.8e-07,87275.0,87273.0,0.01156]
[1766764878865,1.47799,87307.0,87280.0,2.10593694]
[1766764879043,1.47809736,87307.0,87288.0,0.01145632]
[1766764879245,1.47809736,87307.0,87289.0,0.02072545]
[1766764879454,0.00010736,87307.0,87291.0,0.01145593]
[1766764879816,0.00010736,87307.0,87293.0,0.01145567]
[1766764880019,0.00010736,87307.0,87291.0,1.44429]
[1766764880135,0.000215,87293.0,87286.0,0.01145659]
[1766764880339,0.00010736,87307.0,87287.0,1.45585]
[1766764880725,0.00084833,87288.0,87287.0,1.45585]
[1766764880836,3.3e-07,87288.0,87287.0,1.45585]
[1766764881249,3.3e-07,87288.0,87277.0,0.01145777]
[1766764881452,1.47799,87306.0,87278.0,0.01156]
[1766764881875,1.47799,87306.0,87275.0,1.44429]
[1766764882075,1.47799,87306.0,87277.0,1.44429]
[1766764882885,0.66164694,87300.0,87277.0,1.44429]
[1766764883074,0.04580903,87299.0,87278.0,0.01156]
[1766764883691,0.04580903,87299.0,87279.0,0.01156]
[1766764883894,0.04580903,87299.0,87277.0,1.44429]
[1766764884210,0.04580903,87299.0,87278.0,0.01156]
[1766764884413,0.04580903,87299.0,87277.0,1.44429]
[1766764884414,0.00055,87278.0,87265.0,1.44429]
[1766764884614,0.00055,87278.0,87266.0,0.01156]
[1766764884778,1.47799,87291.0,87267.0,0.01156]
[1766764885177,0.05726391,87299.0,87274.0,1.44429]
[1766764885178,0.04580903,87299.0,87274.0,1.44429]
[1766764885376,1.47799,87302.0,87278.0,1.44429]
[1766764885615,1.48965736,87302.0,87282.0,0.01145711]
[1766764885820,1.48965736,87302.0,87281.0,0.01145724]
[1766764885821,1.48965736,87302.0,87283.0,0.01156]
[1766764886029,1.48965736,87302.0,87283.0,0.02301698]
[1766764886200,1.48965736,87302.0,87283.0,0.01156]
[1766764886533,1.47809736,87302.0,87285.0,0.01145672]
[1766764886693,0.00025147,87296.0,87285.0,0.01145672]
[1766764886897,0.00025147,87296.0,87283.0,0.01156]
[1766764887695,0.00025147,87296.0,87286.0,1.44429]
[1766764887914,1.47e-06,87296.0,87286.0,1.44429]
[1766764888197,1.47e-06,87296.0,87287.0,0.01145645]
[1766764888392,1.47e-06,87296.0,87293.0,0.01145567]
[1766764888615,1.47e-06,87296.0,87291.0,1.44429]
[1766764888616,1.47e-06,87296.0,87294.0,1.44429]
[1766764889890,1.47e-06,87296.0,87292.0,0.01156]
[1766764890387,1.47e-06,87296.0,87289.0,0.01156]
[1766764890534,1.47e-06,87296.0,87284.0,1.44429]
[1766764890737,1.47e-06,87296.0,87285.0,0.01156]
[1766764891356,1.47e-06,87296.0,87284.0,1.44429]
[1766764891758,1.47e-06,87296.0,87276.0,1.4328321]
[1766764891759,0.66164694,87294.0,87276.0,1.4328321]
[1766764891993,0.66164694,87294.0,87274.0,0.01156]
[1766764892226,1.47e-06,87296.0,87274.0,0.01156]
[1766764892779,0.01145674,87296.0,87274.0,0.01156]
[1766764893410,0.0114554,87295.0,87274.0,0.01156]
[1766764893685,0.66164694,87290.0,87269.0,1.44429]
[1766764893835,0.66164694,87290.0,87273.0,0.01156]
[1766764894036,0.66164694,87290.0,87273.0,0.00603012]
[1766764894244,0.66164694,87290.0,87250.0,0.79017353]
[1766764894245,0.05728854,87278.0,87245.0,1.44429]
[1766764894450,1.48955,87279.0,87250.0,0.01146131]
[1766764894657,1.48955,87279.0,87246.0,0.01156]
[1766764894658,0.01145803,87275.0,87251.0,1.44429]
[1766764894865,0.66164694,87270.0,87251.0,1.44429]
[1766764895074,1.48955,87269.0,87250.0,0.01156]
[1766764895283,1.48955,87269.0,87246.0,0.01156]
[1766764895497,1.47799,87267.0,87246.0,0.01156]
[1766764895691,0.66164694,87260.0,87246.0,0.01156]
[1766764895891,0.66164694,87260.0,87246.0,0.00010738]
[1766764896099,0.67320694,87260.0,87246.0,0.00010738]
[1766764896523,0.01156,87260.0,87246.0,0.00010738]
[1766764896736,0.67320694,87260.0,87246.0,0.00010738]
[1766764897066,0.06732069,87259.0,87246.0,0.00010738]
[1766764897213,0.67320694,87260.0,87246.0,0.00010738]
[1766764897415,0.67320694,87260.0,87230.0,1.44429]
[1766764897416,0.01146066,87255.0,87230.0,1.44429]
[1766764897646,0.66164694,87250.0,87231.0,0.01156]
[1766764897821,0.01156,87249.0,87231.0,0.01156]
[1766764898049,0.01156,87249.0,87216.0,0.01146578]
[1766764898050,0.66164694,87241.0,87221.0,0.01156]
[1766764898255,0.66164694,87241.0,87219.0,1.44429]
[1766764898256,1.48955,87240.0,87219.0,1.44429]
[1766764898601,1.48955,87240.0,87207.0,0.06880158]
[1766764898602,1.48955,87240.0,87214.0,0.01156]
[1766764898805,0.66164694,87230.0,87212.0,0.01146631]
[1766764898941,0.01156,87231.0,87213.0,1.44429]
[1766764899148,0.01156,87231.0,87208.0,0.01146683]
[1766764899347,0.01156,87231.0,87206.0,0.01156]
[1766764899348,0.12852659,87209.0,87206.0,0.01156]
[1766764899547,0.12742659,87209.0,87206.0,0.01156]
[1766764900585,0.12742659,87209.0,87206.0,0.0119182]
[1766764900786,0.12742659,87209.0,87206.0,0.0003582]
[1766764901225,0.10792802,87209.0,87206.0,0.0003582]
[1766764901412,0.01156,87220.0,87206.0,0.0003582]
[1766764901637,0.12852659,87213.0,87206.0,0.0003582]
[1766764901974,0.12852659,87232.0,87211.0,1.51308863]
[1766764902174,0.01156,87236.0,87217.0,1.44429]
[1766764902397,0.01156,87236.0,87217.0,1.45575565]
[1766764902576,0.01156,87236.0,87218.0,0.01146552]
[1766764902776,0.12852659,87241.0,87218.0,0.01146552]
[1766764902997,0.01156,87236.0,87220.0,0.01146526]
[1766764903174,0.01156,87236.0,87221.0,0.01146512]
[1766764903376,0.01156,87236.0,87217.0,1.44429]
[1766764903597,0.66164694,87240.0,87217.0,1.44429]
[1766764903598,0.66164694,87240.0,87220.0,0.01146526]
[1766764903817,0.70752694,87250.0,87228.0,0.0114642]
[1766764904022,0.01156,87249.0,87229.0,1.45575407]
[1766764904195,0.01156,87249.0,87229.0,1.46731407]
[1766764904400,0.01156,87249.0,87232.0,0.01146368]
[1766764904619,1.47799,87255.0,87236.0,0.01146315]
[1766764904825,0.01156,87254.0,87241.0,0.0114625]
[1766764905026,0.01156,87254.0,87242.0,0.01146236]
[1766764905235,0.66164694,87260.0,87243.0,0.06877341]
[1766764905400,0.66164694,87260.0,87240.0,0.01146263]
[1766764905630,0.01156,87263.0,87243.0,0.01146223]
[1766764905807,0.01166732,87263.0,87245.0,0.01146197]
[1766764906204,1.37046,87284.0,87249.0,0.06876846]
[1766764906550,1.37046,87284.0,87253.0,1.42397]
[1766764906551,2.03210694,87280.0,87253.0,1.42397]
[1766764906753,1.37046,87279.0,87253.0,1.42397]
[1766764906961,0.66164694,87270.0,87253.0,1.43553]
[1766764907322,0.01156,87272.0,87253.0,1.43553]
[1766764907861,0.05728553,87283.0,87253.0,1.43553]
[1766764907862,1.37046,87289.0,87257.0,0.01146039]
[1766764908002,0.01156,87288.0,87260.0,0.05729992]
[1766764908210,0.01156,87288.0,87261.0,0.01156]
[1766764908429,1.37046,87287.0,87261.0,0.01156]
[1766764908633,1.37046,87285.0,87261.0,0.01156]
[1766764909696,0.01156,87284.0,87265.0,1.42397]
[1766764909917,0.01156,87288.0,87273.0,0.01145829]
[1766764910121,0.01156,87288.0,87272.0,1.43542842]
[1766764910292,0.01156,87288.0,87272.0,1.42397]